[Event "36th German Seniors-ch-65 2024"]
[Site "Bad Wildungen"]
[Date "2024.08.29"]
[Round "7.13"]
[White "Namyslo, Holger"]
[Black "Ellenberg, Ekkehard"]
[Result "1-0"]
[ECO "B28"]
[WhiteElo "2140"]
[BlackElo "1998"]
[Annotator "NA RC"]
[PlyCount "117"]
[EventDate "2024.08.22"]
[EventType "swiss"]
[EventCountry "GER"]
[SourceTitle "playchess.com"]
[Source "ChessBase"]
[SourceQuality "1"]
[TimeControl "40/5400+30:1800+30"]

1. e4 {[%emt 0:00:06]} c5 {[%emt 0:00:14]} 2. Nf3 {[%emt 0:00:07]} a6 {[%emt 0:00:17]} 3. c3 {[%emt 0:00:11]} Nf6 {[%emt 0:01:59]} 4. e5 {[%emt 0:00:22]} Nd5 {[%emt 0:00:21]} 5. d4 {[%emt 0:00:51]} cxd4 {[%emt 0:00:06]} 6. cxd4 {[%emt 0:00:26]} d6 {[%emt 0:02:05] B28: Sicilian: 2 Nf3 a6 (O'Kelly Variation).} 7. Bc4 {[%emt 0:01:49]} Nb6 {[%emt 0:06:49]} 8. Bb3 {[%emt 0:03:53]} d5 {[%emt 0:00:35]} 9. O-O {[%emt 0:01:37]} Bg4 {[%emt 0:00:48]} 10. h3 {[%emt 0:05:12]} Bh5 {[%emt 0:00:32]} (10... Bf5 $14) 11. a4 {[%emt 0:02:04]} Nc6 {[%emt 0:02:35] [#]} (11... e6 $11) 12. Be3 {[%emt 0:08:01]} ({Better is} 12. g4 $1 $16 {[%cal Rg4h5]} Bg6 13. e6) 12... e6 {[%emt 0:02:43]} 13. Nc3 {[%emt 0:00:57]} Na5 {[%emt 0:03:41]} 14. Bc2 {[%emt 0:03:12]} Rc8 {[%emt 0:01:59]} 15. Ne2 {[%emt 0:02:12]} (15. g4 $11 Bg6 16. Bxg6 hxg6 17. h4) 15... Be7 {[%emt 0:05:13]} 16. b3 {[%emt 0:03:14]} (16. g4 $11 Bg6 17. Bxg6 hxg6 18. b3) 16... Bg6 {[%emt 0:02:18]} (16... Bxf3 $15 17. gxf3 Nd7) 17. Bd3 {[%emt 0:07:51]} O-O {[%emt 0:09:31]} 18. Nf4 {[%emt 0:02:06]} Nd7 {[%emt 0:05:25]} 19. Nxg6 {[%emt 0:03:12]} hxg6 {[%emt 0:00:14]} 20. Bd2 {[%emt 0:04:31]} Nc6 {[%emt 0:02:54]} 21. a5 {[%emt 0:06:37]} Bb4 {[%emt 0:01:54]} 22. Qe1 $1 {[%emt 0:00:46]} Qe7 {[%emt 0:01:44]} 23. Ra4 {[%emt 0:00:22]} Bxd2 {[%emt 0:01:42]} 24. Qxd2 {[%emt 0:00:14]} Rc7 {[%emt 0:01:08]} 25. Rc1 {[%emt 0:09:07]} Rfc8 {[%emt 0:02:32]} 26. Kh1 {[%emt 0:00:13]} Nf8 {[%emt 0:01:56]} 27. h4 {[%emt 0:03:59]} Na7 {[%emt 0:05:32]} 28. Raa1 {[%emt 0:00:33]} Rxc1+ {[%emt 0:01:08]} 29. Rxc1 {[%emt 0:00:12]} Rc6 {[%emt 0:09:59]} (29... Rxc1+ $11 30. Qxc1 Nc6 31. Bxa6 Nxd4 32. Nxd4 Qxh4+ (32... bxa6 33. g3 $11) 33. Kg1 bxa6) 30. Ng5 {[%emt 0:02:19]} (30. Rb1 $14) 30... f6 {[%emt 0:01:36]} 31. exf6 {[%emt 0:00:47]} gxf6 {[%emt 0:00:12]} 32. Nf3 {[%emt 0:00:31]} Kg7 {[%emt 0:02:19]} (32... Rxc1+ $5 33. Qxc1 Nc6 $11) 33. Qf4 {[%emt 0:02:39]} Rxc1+ {[%emt 0:00:35]} 34. Qxc1 {[%emt 0:00:02]} Qd6 $1 {[%emt 0:00:16]} 35. Nh2 {[%emt 0:01:33]} Nc6 {[%emt 0:05:55]} 36. Ng4 {[%emt 0:01:21]} f5 {[%emt 0:01:35]} (36... Nxa5 $2 {loses.} 37. Qh6+ Kf7 38. Bxg6+ Ke7 39. h5 $18 (39. Qg7+ Kd8 $18)) 37. Qh6+ {[%emt 0:01:13]} Kf7 {[%emt 0:00:15]} 38. h5 {[%emt 0:00:20]} fxg4 {[%emt 0:01:20]} 39. hxg6+ {[%emt 0:00:33]} Nxg6 {[%emt 0:00:27]} 40. Qxg6+ {[%emt 0:12:12]} Ke7 {[%emt 0:01:45]} 41. Qg7+ {[%emt 0:31:53]} Ke8 {[%emt 0:30:44]} 42. Qxb7 {[%emt 0:01:04]} Nxa5 {[%emt 0:01:22]} 43. Qb8+ {[%emt 0:00:30]} Ke7 {[%emt 0:00:30]} 44. Qa8 {[%emt 0:01:53]} Nxb3 45. Bxa6 $2 {[%emt 0:03:38]} (45. Qb7+ $18 Kd8 46. Qxb3) 45... Kf7 {[%emt 0:13:09]} 46. Bb5 {[%emt 0:00:00]} Kf6 {[%emt 0:00:00]} 47. Ba4 {[%emt 0:00:00]} (47. Qh8+ $18 Kf7 48. Be8+ Ke7 49. Ba4) 47... Qb4 {[%emt 0:00:00]} 48. Qh8+ {[%emt 0:00:00]} Kf7 {[%emt 0:00:00]} 49. Qh5+ {[%emt 0:00:00]} Kf6 {[%emt 0:00:00]} 50. Qe5+ {[%emt 0:00:00]} Kf7 {[%emt 0:00:00]} 51. Qf4+ {[%emt 0:00:00]} Ke7 {[%emt 0:00:00]} 52. Qg5+ {[%emt 0:00:00]} Kf7 {[%emt 0:00:00]} 53. Bxb3 $18 {[%emt 0:00:00]} Qxb3 {[%emt 0:00:00]} 54. Qxg4 {[%emt 0:00:00]} Qc4 {[%emt 0:00:00]} 55. Qf4+ {[%emt 0:00:00]} Kg6 {[%emt 0:00:00]} 56. g4 {[%emt 0:00:00]} Qc8 {[%emt 0:00:00]} 57. Qe5 {[%emt 0:00:00]} Qd7 {[%emt 0:00:00]} 58. Kg2 {[%emt 0:00:00]} Qf7 {[%emt 0:01:04]} 59. Qh5+ {[%emt 0:00:00]} 1-0

[Event "36th German Seniors-ch-65 2024"]
[Site "Bad Wildungen"]
[Date "2024.08.29"]
[Round "7.14"]
[White "Chevelevitch, Evgueni"]
[Black "Kornrumpf, Joachim"]
[Result "1-0"]
[ECO "B41"]
[WhiteElo "2334"]
[BlackElo "2029"]
[Annotator "RC"]
[PlyCount "64"]
[EventDate "2024.08.22"]
[EventType "swiss"]
[EventCountry "GER"]
[SourceTitle "playchess.com"]
[Source "ChessBase"]
[SourceQuality "1"]
[TimeControl "40/5400+30:1800+30"]

1. e4 {[%emt 0:00:03]} c5 {[%emt 0:00:12]} 2. Nf3 {[%emt 0:00:11]} e6 {[%emt 0:00:09]} 3. d4 {[%emt 0:00:14]} cxd4 {[%emt 0:00:06]} 4. Nxd4 {[%emt 0:00:05]} a6 {[%emt 0:00:09]} 5. c4 {[%emt 0:01:07]} Nf6 {[%emt 0:01:07]} 6. Nc3 {[%emt 0:00:10]} Qc7 {[%emt 0:00:20]} 7. Be2 {[%emt 0:01:34]} Be7 {[%emt 0:07:07]} 8. Be3 {[%emt 0:01:15]} d6 {[%emt 0:02:32]} 9. Rc1 {[%emt 0:00:17]} Nbd7 {[%emt 0:00:51]} 10. g4 {[%emt 0:06:20]} h6 {[%emt 0:11:31]} 11. h4 {[%emt 0:00:33]} b6 {[%emt 0:03:43]} 12. f3 {[%emt 0:00:20]} Bb7 {[%emt 0:05:10]} 13. Kd2 {[%emt 0:00:26]} g6 {[%emt 1:04:03]} 14. Kc2 {[%emt 1:24:55]} O-O-O {[%emt 0:00:00]} 15. Kb1 {[%emt 0:00:00]} Kb8 {[%emt 0:00:00]} 16. Qd2 {[%emt 0:00:00]} Bf8 {[%emt 0:00:00]} 17. Rhg1 {[%emt 0:00:00]} Bg7 {[%emt 0:00:00]} 18. Rgd1 {[%emt 0:00:00]} Nc5 {[%emt 0:00:00]} 19. Qe1 {[%emt 0:00:00]} Rde8 {[%emt 0:00:00]} 20. g5 {[%emt 0:00:00]} Ng8 {[%emt 0:00:00]} 21. b4 {[%emt 0:00:00]} Bxd4 {[%emt 0:00:00]} 22. Rxd4 {[%emt 0:00:00]} Nd7 {[%emt 0:00:00]} 23. gxh6 {[%emt 0:00:00]} Ne5 {[%emt 0:00:00]} 24. a3 {[%emt 0:00:00]} f5 {[%emt 0:00:00]} 25. Qg1 {[%emt 0:00:00]} fxe4 {[%emt 0:00:00]} 26. fxe4 {[%emt 0:00:00]} Bxe4+ {[%emt 0:00:00]} 27. Rxe4 {[%emt 0:00:00]} Kb7 {[%emt 0:00:00]} 28. Rd4 {[%emt 0:00:00]} Nc6 {[%emt 0:00:00]} 29. Rd2 {[%emt 0:00:00]} Nge7 {[%emt 0:00:00]} 30. Bd3 {[%emt 0:00:00]} Nf5 {[%emt 0:00:00]} 31. Bf2 {[%emt 0:00:00]} d5 {[%emt 0:00:00]} 32. Rcc2 {[%emt 0:00:00]} d4 {[%emt 0:00:00]} 1-0

[Event "36th German Seniors-ch-65 2024"]
[Site "Bad Wildungen"]
[Date "2024.08.29"]
[Round "7.15"]
[White "Babrikowski, Peter"]
[Black "Blab, Ludwig"]
[Result "1-0"]
[ECO "C09"]
[WhiteElo "2153"]
[BlackElo "2026"]
[Annotator "RC"]
[PlyCount "97"]
[EventDate "2024.08.22"]
[EventType "swiss"]
[EventCountry "GER"]
[SourceTitle "playchess.com"]
[Source "ChessBase"]
[SourceQuality "1"]
[TimeControl "40/5400+30:1800+30"]

1. e4 {[%emt 0:00:15]} e6 {[%emt 0:00:08]} 2. d4 {[%emt 0:00:09]} d5 {[%emt 0:00:03]} 3. Nd2 {[%emt 0:00:32]} c5 {[%emt 0:01:06]} 4. Ngf3 {[%emt 0:01:09]} Nc6 {[%emt 0:00:31]} 5. dxc5 {[%emt 0:03:50]} Bxc5 {[%emt 0:00:22]} 6. exd5 {[%emt 0:04:01]} exd5 {[%emt 0:00:28]} 7. Nb3 {[%emt 0:00:15]} Bb6 {[%emt 0:00:14]} 8. Bg5 {[%emt 0:00:23]} Nf6 {[%emt 0:00:48]} 9. Qe2+ {[%emt 0:05:16]} Be6 {[%emt 0:01:03]} 10. O-O-O {[%emt 0:00:32]} O-O {[%emt 0:00:55]} 11. Nfd4 {[%emt 0:00:00]} Re8 {[%emt 0:00:55]} 12. Qf3 {[%emt 0:02:52]} Rc8 {[%emt 0:03:07]} 13. Bxf6 {[%emt 0:00:45]} Qxf6 {[%emt 0:02:31]} 14. Qxf6 {[%emt 0:00:16]} gxf6 {[%emt 0:00:04]} 15. Bb5 {[%emt 0:00:56]} Bd7 {[%emt 0:02:52]} 16. Rd2 {[%emt 0:12:59]} Re7 {[%emt 0:03:36]} 17. Rhd1 {[%emt 0:16:48]} a6 {[%emt 0:04:29]} 18. Bf1 {[%emt 0:05:21]} Rce8 {[%emt 0:01:02]} 19. c3 {[%emt 0:05:07]} Re1 {[%emt 0:01:29]} 20. Rxe1 {[%emt 0:04:43]} Rxe1+ {[%emt 0:02:17]} 21. Rd1 {[%emt 0:00:02]} Re7 {[%emt 0:01:51]} 22. Bd3 {[%emt 0:03:01]} a5 {[%emt 0:01:39]} 23. Nf5 {[%emt 0:04:26]} Bxf5 {[%emt 0:01:22]} 24. Bxf5 {[%emt 0:00:03]} Bxf2 {[%emt 0:00:20]} 25. Rxd5 {[%emt 0:00:41]} Re5 {[%emt 0:00:59]} 26. c4 {[%emt 0:00:24]} a4 {[%emt 0:01:22]} 27. Rxe5 {[%emt 0:05:11]} fxe5 {[%emt 0:01:04]} 28. Nd2 {[%emt 0:00:10]} Be3 {[%emt 0:00:56]} 29. Kd1 {[%emt 0:00:47]} Na5 {[%emt 0:03:45]} 30. Bd3 {[%emt 0:00:18]} f6 {[%emt 0:04:46]} 31. Ke2 {[%emt 0:01:12]} Bd4 {[%emt 0:05:16]} 32. b4 {[%emt 0:06:15]} axb3 {[%emt 0:01:24]} 33. axb3 {[%emt 0:00:04]} Bc5 {[%emt 0:01:38]} 34. Ne4 {[%emt 0:01:43]} Be7 {[%emt 0:00:08]} 35. b4 {[%emt 0:00:59]} Nc6 {[%emt 0:00:34]} 36. b5 {[%emt 0:00:59]} Nd4+ {[%emt 0:00:35]} 37. Kd2 {[%emt 0:03:03]} Kg7 {[%emt 0:04:15]} 38. Ng3 {[%emt 0:01:57]} Bb4+ {[%emt 0:00:18]} 39. Ke3 {[%emt 0:00:21]} Bc5 {[%emt 0:00:22]} 40. Ke4 {[%emt 0:00:11]} b6 {[%emt 0:00:59]} 41. Kd5 {[%emt 0:30:20]} Nb3 {[%emt 0:34:17]} 42. h3 {[%emt 0:10:41]} h6 {[%emt 0:02:58]} 43. Nf5+ {[%emt 0:00:43]} Kg6 {[%emt 0:00:47]} 44. Nd4+ {[%emt 0:00:25]} Kg5 {[%emt 0:00:08]} 45. Nxb3 {[%emt 0:00:06]} Be7 {[%emt 0:05:05]} 46. c5 {[%emt 0:00:37]} bxc5 {[%emt 0:00:20]} 47. Nxc5 {[%emt 0:00:12]} f5 {[%emt 0:00:18]} 48. b6 {[%emt 0:00:14]} Bxc5 {[%emt 0:00:20]} 49. Kxc5 {[%emt 0:00:09]} 1-0

[Event "36th German Seniors-ch-65 2024"]
[Site "Bad Wildungen"]
[Date "2024.08.29"]
[Round "7.16"]
[White "Hanisch, Friedrich"]
[Black "Erler, Rainer"]
[Result "1/2-1/2"]
[ECO "D34"]
[WhiteElo "2012"]
[BlackElo "2122"]
[Annotator "RC"]
[PlyCount "54"]
[EventDate "2024.08.22"]
[EventType "swiss"]
[EventCountry "GER"]
[SourceTitle "playchess.com"]
[Source "ChessBase"]
[SourceQuality "1"]
[TimeControl "40/5400+30:1800+30"]

1. d4 {[%emt 0:00:08]} d5 {[%emt 0:00:02]} 2. c4 {[%emt 0:00:10]} e6 {[%emt 0:00:05]} 3. Nc3 {[%emt 0:01:27]} c5 {[%emt 0:00:06]} 4. cxd5 {[%emt 0:00:22]} exd5 {[%emt 0:00:01]} 5. Nf3 {[%emt 0:00:31]} Nc6 {[%emt 0:00:04]} 6. g3 {[%emt 0:01:12]} Nf6 {[%emt 0:00:06]} 7. Bg2 {[%emt 0:00:55]} Be7 {[%emt 0:00:07]} 8. O-O {[%emt 0:01:29]} O-O {[%emt 0:00:04]} 9. dxc5 {[%emt 0:00:33]} Bxc5 {[%emt 0:00:23]} 10. Bg5 {[%emt 0:02:07]} d4 {[%emt 0:00:23]} 11. Bxf6 {[%emt 0:08:11]} Qxf6 {[%emt 0:00:18]} 12. Ne4 {[%emt 0:00:08]} Qe7 {[%emt 0:02:50]} 13. Nxc5 {[%emt 0:00:34]} Qxc5 {[%emt 0:00:01]} 14. Rc1 {[%emt 0:00:21]} Qb6 {[%emt 0:01:20]} 15. Qd2 {[%emt 0:03:01]} Bg4 {[%emt 0:07:58]} 16. Rfd1 {[%emt 0:11:21]} Rad8 {[%emt 0:02:13]} 17. h3 {[%emt 0:02:50]} Be6 {[%emt 0:25:37]} 18. b3 {[%emt 0:01:50]} h6 {[%emt 0:00:14]} 19. Qf4 {[%emt 0:04:34]} Rfe8 {[%emt 0:12:34]} 20. h4 {[%emt 0:11:15]} Bd5 {[%emt 0:03:04]} 21. Rc2 {[%emt 0:11:29]} Re4 {[%emt 0:07:51]} 22. Qc1 {[%emt 0:01:11]} Rde8 {[%emt 0:06:05]} 23. Qb2 {[%emt 0:02:37]} R4e7 {[%emt 0:11:40]} 24. Nxd4 {[%emt 0:07:18]} Nxd4 {[%emt 0:03:24]} 25. Qxd4 {[%emt 0:04:39]} Qxd4 {[%emt 0:00:22]} 26. Rxd4 {[%emt 0:00:12]} Bxg2 {[%emt 0:00:02]} 27. Kxg2 {[%emt 0:00:24]} Rxe2 {[%emt 0:00:03]} 1/2-1/2

[Event "36th German Seniors-ch-65 2024"]
[Site "Bad Wildungen"]
[Date "2024.08.29"]
[Round "7.17"]
[White "Polster, Wolfgang"]
[Black "Boeven, Manfred"]
[Result "1-0"]
[ECO "B48"]
[WhiteElo "2112"]
[BlackElo "1998"]
[Annotator "RC"]
[PlyCount "111"]
[EventDate "2024.08.22"]
[EventType "swiss"]
[EventCountry "GER"]
[SourceTitle "playchess.com"]
[Source "ChessBase"]
[SourceQuality "1"]
[TimeControl "40/5400+30:1800+30"]

1. e4 {[%emt 0:00:22]} c5 {[%emt 0:00:10]} 2. Nf3 {[%emt 0:00:55]} e6 {[%emt 0:00:10]} 3. d4 {[%emt 0:01:27]} cxd4 {[%emt 0:00:12]} 4. Nxd4 {[%emt 0:00:14]} Nc6 {[%emt 0:00:18]} 5. Nc3 {[%emt 0:00:26]} Qc7 {[%emt 0:00:10]} 6. Be3 {[%emt 0:00:43]} a6 {[%emt 0:00:12]} 7. a3 {[%emt 0:00:50]} Nf6 {[%emt 0:00:42]} 8. f4 {[%emt 0:00:35]} d6 {[%emt 0:03:17]} 9. Be2 {[%emt 0:08:44]} Be7 {[%emt 0:00:10]} 10. Qd3 {[%emt 0:01:49]} e5 {[%emt 0:04:07]} 11. Nf5 {[%emt 0:01:40]} Bxf5 {[%emt 1:26:32]} 12. exf5 {[%emt 1:18:45]} exf4 {[%emt 0:00:00]} 13. Bxf4 {[%emt 0:00:00]} Ne5 {[%emt 0:00:00]} 14. Qd4 {[%emt 0:00:00]} Rc8 {[%emt 0:00:00]} 15. O-O-O {[%emt 0:00:00]} Qc5 {[%emt 0:00:00]} 16. Qxc5 {[%emt 0:00:00]} Rxc5 {[%emt 0:00:00]} 17. Be3 {[%emt 0:00:00]} Rc6 {[%emt 0:00:00]} 18. Rd4 {[%emt 0:00:00]} O-O {[%emt 0:00:00]} 19. Nd5 {[%emt 0:00:00]} Nxd5 {[%emt 0:00:00]} 20. Rxd5 {[%emt 0:00:00]} Rfc8 {[%emt 0:00:00]} 21. c3 {[%emt 0:00:00]} h6 {[%emt 0:00:00]} 22. Rhd1 {[%emt 0:00:00]} Rd8 {[%emt 0:00:00]} 23. Bf4 {[%emt 0:00:00]} Rdc8 {[%emt 0:00:00]} 24. Bxe5 {[%emt 0:00:00]} dxe5 {[%emt 0:00:00]} 25. Rxe5 {[%emt 0:00:00]} Bd6 {[%emt 0:00:00]} 26. Re4 {[%emt 0:00:00]} Bxh2 {[%emt 0:00:00]} 27. Rd7 {[%emt 0:00:00]} R6c7 {[%emt 0:00:00]} 28. Rxc7 {[%emt 0:00:00]} Bxc7 {[%emt 0:00:00]} 29. Kc2 {[%emt 0:00:00]} Bd6 {[%emt 0:00:00]} 30. Rd4 {[%emt 0:00:00]} Rd8 {[%emt 0:00:00]} 31. c4 {[%emt 0:00:00]} b6 {[%emt 0:00:00]} 32. b4 {[%emt 0:00:00]} a5 {[%emt 0:00:00]} 33. Kb3 {[%emt 0:00:00]} axb4 {[%emt 0:00:00]} 34. axb4 {[%emt 0:00:00]} Kf8 {[%emt 0:00:00]} 35. f6 {[%emt 0:00:00]} gxf6 {[%emt 0:00:00]} 36. Ka4 {[%emt 0:00:00]} Ke7 {[%emt 0:00:00]} 37. Kb5 {[%emt 0:00:00]} Rb8 {[%emt 0:00:00]} 38. Bg4 {[%emt 0:00:00]} Ra8 {[%emt 0:00:00]} 39. c5 {[%emt 0:00:00]} bxc5 {[%emt 0:00:00]} 40. bxc5 {[%emt 0:00:00]} Bb8 {[%emt 0:00:00]} 41. Rd7+ {[%emt 0:01:09]} Ke8 {[%emt 0:29:31]} 42. c6 {[%emt 0:01:01]} Ra2 {[%emt 0:03:22]} 43. Bf3 {[%emt 0:07:30]} Rb2+ {[%emt 0:03:49]} 44. Ka6 {[%emt 0:01:13]} Be5 {[%emt 0:05:42]} 45. Bd5 {[%emt 0:04:48]} Rc2 {[%emt 0:03:41]} 46. Bxf7+ {[%emt 0:00:20]} Kf8 {[%emt 0:00:03]} 47. Kb6 {[%emt 0:01:40]} Rxg2 {[%emt 0:00:00]} 48. Bc4 {[%emt 0:00:00]} Rg4 {[%emt 0:00:00]} 49. Kc5 {[%emt 0:00:00]} h5 {[%emt 0:00:00]} 50. c7 {[%emt 0:00:00]} Bxc7 {[%emt 0:00:00]} 51. Rxc7 {[%emt 0:00:00]} Re4 {[%emt 0:00:00]} 52. Kd6 {[%emt 0:00:00]} h4 {[%emt 0:00:00]} 53. Bd5 {[%emt 0:00:00]} Re3 {[%emt 0:00:00]} 54. Rf7+ {[%emt 0:00:00]} Ke8 {[%emt 0:00:00]} 55. Rxf6 {[%emt 0:00:00]} Ra3 {[%emt 0:00:00]} 56. Bc6+ {[%emt 0:00:00]} 1-0

[Event "36th German Seniors-ch-65 2024"]
[Site "Bad Wildungen"]
[Date "2024.08.29"]
[Round "7.18"]
[White "Larem, Ewald"]
[Black "Schulz, Michael"]
[Result "1/2-1/2"]
[ECO "A69"]
[WhiteElo "1998"]
[BlackElo "2109"]
[Annotator "RC"]
[PlyCount "69"]
[EventDate "2024.08.22"]
[EventType "swiss"]
[EventCountry "GER"]
[SourceTitle "playchess.com"]
[Source "ChessBase"]
[SourceQuality "1"]
[TimeControl "40/5400+30:1800+30"]

1. d4 {[%emt 0:00:05]} Nf6 {[%emt 0:00:06]} 2. c4 {[%emt 0:00:19]} c5 {[%emt 0:00:05]} 3. d5 {[%emt 0:00:25]} e6 {[%emt 0:00:04]} 4. Nc3 {[%emt 0:00:37]} exd5 {[%emt 0:00:04]} 5. cxd5 {[%emt 0:00:14]} d6 {[%emt 0:00:06]} 6. e4 {[%emt 0:00:54]} a6 {[%emt 0:00:14]} 7. a4 {[%emt 0:00:29]} g6 {[%emt 0:00:05]} 8. f4 {[%emt 0:01:07]} Bg7 {[%emt 0:00:07]} 9. Nf3 {[%emt 0:00:15]} O-O {[%emt 0:00:24]} 10. Be2 {[%emt 0:00:37]} Re8 {[%emt 0:05:17]} 11. Nd2 {[%emt 0:00:38]} h5 {[%emt 0:01:30]} 12. h3 {[%emt 0:02:26]} Nbd7 {[%emt 0:00:49]} 13. O-O {[%emt 0:00:23]} b6 {[%emt 0:06:16]} 14. Bf3 {[%emt 0:04:56]} Ng4 {[%emt 0:04:52]} 15. Bxg4 {[%emt 0:12:04]} hxg4 {[%emt 0:00:46]} 16. Qxg4 {[%emt 0:00:10]} Bd4+ {[%emt 0:02:14]} 17. Kh1 {[%emt 0:01:52]} Kg7 {[%emt 0:01:05]} 18. Qg3 {[%emt 0:09:54]} Nf6 {[%emt 0:09:25]} 19. Ra3 {[%emt 0:09:52]} Nh5 {[%emt 0:07:14]} 20. Qf3 {[%emt 0:00:18]} f5 {[%emt 0:03:51]} 21. Nc4 {[%emt 0:08:04]} Rb8 {[%emt 0:26:46]} 22. exf5 {[%emt 0:06:57]} Qh4 {[%emt 0:02:30]} 23. Kh2 {[%emt 0:06:11]} Bxf5 {[%emt 0:02:13]} 24. Nxd6 {[%emt 0:02:24]} Nf6 {[%emt 0:01:55]} 25. Nxe8+ {[%emt 0:05:06]} Rxe8 {[%emt 0:00:05]} 26. Ne2 {[%emt 0:01:38]} Ng4+ {[%emt 0:04:23]} 27. Kh1 {[%emt 0:01:21]} Nf2+ {[%emt 0:00:52]} 28. Rxf2 {[%emt 0:05:12]} Qxf2 {[%emt 0:00:23]} 29. Nxd4 {[%emt 0:03:26]} Re1+ {[%emt 0:02:38]} 30. Kh2 {[%emt 0:00:06]} Qg1+ {[%emt 0:00:09]} 31. Kg3 {[%emt 0:00:20]} Qxd4 {[%emt 0:02:30]} 32. Qc3 {[%emt 0:04:01]} Rd1 {[%emt 0:00:30]} 33. Be3 {[%emt 0:00:30]} Qxc3 {[%emt 0:00:30]} 34. Rxc3 {[%emt 0:00:30]} g5 {[%emt 0:00:30]} 35. Rb3 {[%emt 0:00:30]} 1/2-1/2

[Event "36th German Seniors-ch-65 2024"]
[Site "Bad Wildungen"]
[Date "2024.08.29"]
[Round "7.19"]
[White "Krueger, Erich"]
[Black "Kuempers, Ulrich"]
[Result "1/2-1/2"]
[ECO "A53"]
[WhiteElo "2085"]
[BlackElo "1991"]
[Annotator "NA RC"]
[PlyCount "84"]
[EventDate "2024.08.22"]
[EventType "swiss"]
[EventCountry "GER"]
[SourceTitle "playchess.com"]
[Source "ChessBase"]
[SourceQuality "1"]
[TimeControl "40/5400+30:1800+30"]

1. d4 {[%emt 0:00:04]} Nf6 {[%emt 0:00:11]} 2. c4 {[%emt 0:00:07]} d6 {[%emt 0:00:12]} 3. Nc3 {[%emt 0:00:08]} e5 {[%emt 0:00:54]} 4. dxe5 {[%emt 0:00:10]} dxe5 {[%emt 0:00:10]} 5. Qxd8+ {[%emt 0:00:14]} Kxd8 {[%emt 0:00:04]} 6. Nf3 {[%emt 0:00:10]} Nfd7 {[%emt 0:00:19]} 7. g4 {[%emt 0:02:08]} c6 {[%emt 0:10:52] A53: Old Indian Defence without Nf3.} 8. b3 {[%emt 0:02:33] is the legacy move (8.g5).} f6 {[%emt 0:10:21]} 9. Bb2 {[%emt 0:01:08]} Bb4 {[%emt 0:04:05]} 10. O-O-O $146 {[%emt 0:00:23]} ({Predecessor:} 10. a3 Bxc3+ 11. Bxc3 Nc5 12. Rd1+ Ke7 13. Nd2 Nba6 14. h4 Be6 15. Rg1 Rad8 16. g5 {½-½ Kopeikin,V (2410)-Leal,D (2316) ARG-RUS email 2006}) 10... Kc7 {[%emt 0:00:49]} 11. Rg1 {[%emt 0:08:57]} Re8 {[%emt 0:18:05]} (11... Nc5 $11) 12. e3 {[%emt 0:13:29]} (12. g5 $14) 12... Nc5 {[%emt 0:03:36]} 13. Nd2 {[%emt 0:05:55]} Be6 {[%emt 0:07:14]} 14. a3 {[%emt 0:10:45]} Bxc3 {[%emt 0:00:29]} 15. Bxc3 {[%emt 0:00:08]} a5 {[%emt 0:02:07]} (15... h6 $11) 16. g5 {[%emt 0:01:49]} Nbd7 {[%emt 0:04:26]} 17. gxf6 {[%emt 0:00:40]} gxf6 {[%emt 0:00:05]} 18. Rg7 {[%emt 0:01:42]} Rg8 {[%emt 0:07:34]} 19. Rxh7 {[%emt 0:02:11]} Bf5 {[%emt 0:00:42]} 20. Rh6 {[%emt 0:03:40]} Rg1 {[%emt 0:03:45]} 21. e4 {[%emt 0:10:39]} Bxe4 {[%emt 0:04:35]} 22. Rh3 {[%emt 0:07:20]} Bf5 {[%emt 0:02:51]} 23. Rg3 {[%emt 0:01:03]} Rh1 {[%emt 0:03:44]} 24. b4 {[%emt 0:05:46] [#]} Na4 $2 {[%emt 0:01:08]} (24... axb4 $1 $19 25. Bxb4 Rxh2) 25. Ba1 {[%emt 0:00:37]} axb4 {[%emt 0:00:15]} 26. axb4 {[%emt 0:00:26]} Nac5 {[%emt 0:03:00]} 27. Bb2 {[%emt 0:01:41]} Ne6 {[%emt 0:02:40]} 28. Nf3 {[%emt 0:06:34]} Ra4 {[%emt 0:03:53]} 29. Nh4 {[%emt 0:04:56]} Be4 {[%emt 0:01:23]} 30. f3 {[%emt 0:01:26]} Bh7 {[%emt 0:02:18]} 31. Bh3 {[%emt 0:00:21]} Rxd1+ {[%emt 0:00:08]} 32. Kxd1 {[%emt 0:00:08]} Ng5 {[%emt 0:01:07]} 33. Bxd7 {[%emt 0:05:01]} Kxd7 {[%emt 0:00:04]} 34. Bc3 {[%emt 0:00:59]} Ke6 {[%emt 0:00:29]} 35. Ng2 {[%emt 0:00:56]} Bf5 {[%emt 0:01:40]} 36. Ne3 {[%emt 0:01:28]} Ra3 {[%emt 0:00:33]} 37. Bd2 {[%emt 0:00:39]} Bd3 {[%emt 0:00:54]} 38. h4 {[%emt 0:00:16]} Ra1+ {[%emt 0:00:16]} 39. Bc1 {[%emt 0:00:09]} Nf7 {[%emt 0:00:29]} 40. c5 {[%emt 0:00:33]} Ra2 {[%emt 0:00:28]} 41. Bd2 $1 {[%emt 0:31:44]} Ra1+ {[%emt 0:30:02]} (41... f5 $17 42. Rg8 (42. Rg6+ Ke7 $15) 42... f4) 42. Bc1 {[%emt 0:00:19]} Ra2 {[%emt 0:00:08]} ({Black should try} 42... Rb1 $15) 1/2-1/2

[Event "36th German Seniors-ch-65 2024"]
[Site "Bad Wildungen"]
[Date "2024.08.29"]
[Round "7.20"]
[White "Eichner, Christian"]
[Black "Wenner, Tobias"]
[Result "0-1"]
[ECO "B22"]
[WhiteElo "1972"]
[BlackElo "2067"]
[Annotator "RC"]
[PlyCount "72"]
[EventDate "2024.08.22"]
[EventType "swiss"]
[EventCountry "GER"]
[SourceTitle "playchess.com"]
[Source "ChessBase"]
[SourceQuality "1"]
[TimeControl "40/5400+30:1800+30"]

1. e4 {[%emt 0:00:03]} c5 {[%emt 0:00:05]} 2. Nf3 {[%emt 0:00:07]} e6 {[%emt 0:00:06]} 3. c3 {[%emt 0:00:07]} d5 {[%emt 0:00:07]} 4. exd5 {[%emt 0:00:06]} Qxd5 {[%emt 0:00:07]} 5. d4 {[%emt 0:00:06]} Nf6 {[%emt 0:00:09]} 6. Na3 {[%emt 0:00:06]} Nc6 {[%emt 0:00:38]} 7. Nb5 {[%emt 0:00:20]} Qd8 {[%emt 0:00:18]} 8. dxc5 {[%emt 0:02:05]} Bxc5 {[%emt 0:00:36]} 9. Qxd8+ {[%emt 0:05:34]} Kxd8 {[%emt 0:00:03]} 10. Bg5 {[%emt 0:00:58]} a6 {[%emt 0:10:38]} 11. Rd1+ {[%emt 0:00:52]} Ke7 {[%emt 0:00:59]} 12. Nbd4 {[%emt 0:00:53]} Bd7 {[%emt 0:01:44]} 13. Nb3 {[%emt 0:01:48]} Bb6 {[%emt 0:03:12]} 14. g3 {[%emt 0:02:39]} h6 {[%emt 0:01:34]} 15. Bxf6+ {[%emt 0:00:41]} gxf6 {[%emt 0:00:08]} 16. Bh3 {[%emt 0:01:07]} Ne5 17. Nxe5 fxe5 {[%emt 0:05:28]} 18. Bg2 {[%emt 0:01:34]} Rab8 {[%emt 0:03:20]} 19. O-O {[%emt 0:04:35]} a5 {[%emt 0:04:35]} 20. Rfe1 {[%emt 0:01:09]} a4 {[%emt 0:02:22]} 21. Nd2 {[%emt 0:04:43]} f6 {[%emt 0:02:20]} 22. a3 {[%emt 0:07:50]} Bc7 {[%emt 0:10:08]} 23. Re4 {[%emt 0:13:54]} b5 {[%emt 0:09:18]} 24. Rh4 {[%emt 0:01:41]} f5 {[%emt 0:05:45]} 25. f4 {[%emt 0:16:20]} e4 {[%emt 0:03:41]} 26. Kf2 {[%emt 0:04:53]} Bc6 {[%emt 0:03:48]} 27. Ke2 {[%emt 0:01:09]} h5 {[%emt 0:04:45]} 28. Nf1 {[%emt 0:01:19]} Bd5 {[%emt 0:07:25]} 29. Ne3 {[%emt 0:07:02]} Bb3 {[%emt 0:02:57]} 30. Rd2 {[%emt 0:02:31]} Bb6 {[%emt 0:01:34]} 31. Bh3 {[%emt 0:02:13]} Kf7 {[%emt 0:04:39]} 32. Rd7+ {[%emt 0:03:49]} Kg6 {[%emt 0:00:15]} 33. Bg2 {[%emt 0:01:08]} Rhd8 {[%emt 0:01:33]} 34. Re7 {[%emt 0:05:19]} Rd3 {[%emt 0:02:07]} 35. Nxf5 {[%emt 0:00:12]} exf5 {[%emt 0:00:21]} 36. Rxe4 {[%emt 0:00:27]} Rbd8 {[%emt 0:01:03]} 0-1